bitfinex-derivatives/quotes_BTCF0:USTF0_20251219
["timestamp","ask_amount","ask_price","bid_price","bid_amount"]
[1766166517344,0.0058,87165.0,87148.0,0.01165308]
[1766166517543,0.0058,87165.0,87151.0,0.0114805]
[1766166517739,0.00292,87171.0,87151.0,0.0114805]
[1766166518556,0.00017208,87173.0,87148.0,0.00017208]
[1766166518750,0.00017208,87173.0,87158.0,0.0114796]
[1766166518946,0.00017208,87173.0,87148.0,0.00017208]
[1766166518947,8e-08,87173.0,87155.0,0.00096]
[1766166519150,8e-08,87173.0,87161.0,0.0114792]
[1766166519449,8e-08,87173.0,87163.0,0.011479]
[1766166519855,0.0114737,87204.0,87177.0,0.0114771]
[1766166520155,0.011474,87202.0,87173.0,0.0173177]
[1766166520456,0.0114743,87199.0,87174.0,0.00396]
[1766166520749,0.00584,87203.0,87178.0,0.00017208]
[1766166520953,0.0114758,87188.0,87178.0,0.00017208]
[1766166521155,0.0114764,87183.0,87167.0,0.00584]
[1766166521358,0.011476,87187.0,87167.0,0.00584]
[1766166521742,0.002,87192.0,87167.0,0.00584]
[1766166522053,0.0114762,87185.0,87167.0,0.00584]
[1766166522253,0.00017208,87188.0,87171.0,8e-08]
[1766166522446,0.0114765,87182.0,87171.0,8e-08]
[1766166522754,0.00584,87181.0,87171.0,8e-08]
[1766166523651,0.00017208,87188.0,87171.0,8e-08]
[1766166524545,0.01164778,87188.0,87171.0,8e-08]
[1766166524842,0.00017208,87188.0,87171.0,8e-08]
[1766166525047,0.00284,87187.0,87172.0,0.0114778]
[1766166525248,0.0036,87191.0,87172.0,0.0114778]
[1766166525452,0.0036,87191.0,87171.0,8e-08]
[1766166525648,0.0150754,87191.0,87171.0,8e-08]
[1766166526259,0.00017208,87190.0,87171.0,8e-08]
[1766166526961,0.0114756,87189.0,87171.0,8e-08]
[1766166527150,0.00017208,87190.0,87171.0,8e-08]
[1766166527345,0.00017208,87190.0,87175.0,0.0114773]
[1766166528659,0.00017208,87190.0,87180.0,0.0114766]
[1766166528956,0.00472,87196.0,87173.0,0.00584]
[1766166529162,0.00472,87196.0,87178.0,0.011477]
[1766166530056,0.004892,87196.0,87180.0,0.0114767]
[1766166530953,0.000172,87196.0,87180.0,0.0114767]
[1766166531152,0.000172,87196.0,87173.0,0.00584]
[1766166531153,0.0114675,87251.0,87200.0,0.0114741]
[1766166531352,0.00532743,87266.0,87231.0,0.01147]
[1766166531554,0.0114657,87264.0,87233.0,0.0114697]
[1766166531860,0.00172,87265.0,87240.0,0.28817663]
[1766166532160,0.00172,87265.0,87244.0,0.01164028]
[1766166532367,0.00172,87265.0,87244.0,0.00017198]
[1766166532758,0.00172,87265.0,87244.0,0.01164018]
[1766166532960,0.00172,87265.0,87244.0,0.00017198]
[1766166533656,0.00172,87265.0,87244.0,0.01164028]
[1766166534458,0.00172,87265.0,87244.0,0.00017198]
[1766166534661,0.00172,87265.0,87246.0,0.0114681]
[1766166534967,0.00172,87265.0,87246.0,0.00584]
[1766166536361,0.00264,87272.0,87246.0,0.00584]
[1766166536561,0.0141048,87272.0,87246.0,0.00584]
[1766166536763,0.0114645,87274.0,87246.0,0.017308]
[1766166536964,1.5,87284.0,87246.0,0.017308]
[1766166537162,0.011464,87278.0,87246.0,0.00584]
[1766166537567,0.0114642,87276.0,87249.0,0.0114676]
[1766166537966,0.0114642,87276.0,87246.0,0.00584]
[1766166537967,0.00392,87275.0,87252.0,0.0114672]
[1766166539268,0.00392,87275.0,87250.0,0.29964413]
[1766166539470,0.00392,87275.0,87253.0,0.00584]
[1766166540167,0.00392,87275.0,87244.0,0.01164028]
[1766166540168,0.011465,87270.0,87244.0,0.01164028]
[1766166540357,0.00392,87275.0,87244.0,0.00017198]
[1766166540567,0.00392,87275.0,87221.0,0.0114713]
[1766166540568,0.28817663,87260.0,87221.0,0.0114713]
[1766166540758,0.28817663,87260.0,87210.0,0.28817663]
[1766166540759,1.46432,87259.0,87210.0,0.28817663]
[1766166540966,1.46432,87259.0,87222.0,0.0114712]
[1766166541171,0.0114674,87252.0,87230.0,0.28817663]
[1766166541366,0.00392,87261.0,87231.0,0.00584]
[1766166541566,1.4743848,87272.0,87231.0,0.00584]
[1766166541567,0.00017131,87255.0,87237.0,0.00017188]
[1766166542172,0.00017131,87255.0,87247.0,0.0114679]
[1766166542375,0.00136,87265.0,87247.0,0.0114679]
[1766166542762,0.00276,87285.0,87250.0,0.28817663]
[1766166543075,0.00276,87285.0,87245.0,0.00336]
[1766166543076,0.0572925,87320.0,87260.0,0.28817663]
[1766166543262,0.0572925,87320.0,87246.0,0.12608643]
[1766166543263,0.0114644,87275.0,87251.0,0.1320355]
[1766166543571,0.0114637,87280.0,87256.0,0.0114667]
[1766166543870,0.0114607,87303.0,87250.0,0.28817663]
[1766166543871,0.0712125,87325.0,87260.0,0.0114662]
[1766166544065,0.28817663,87310.0,87267.0,0.0114652]
[1766166544265,0.0114629,87286.0,87260.0,0.29964293]
[1766166544474,0.0114629,87286.0,87260.0,0.0114663]
[1766166544773,0.0114627,87287.0,87263.0,0.0114658]
[1766166545076,0.0114633,87283.0,87259.0,0.0114663]
[1766166545277,0.0114633,87283.0,87257.0,0.00584]
[1766166545475,0.00017188,87279.0,87262.0,8e-08]
[1766166545780,0.00017188,87279.0,87178.0,0.10217084]
[1766166545781,0.0114689,87241.0,87225.0,0.09385444]
[1766166545969,0.0126283,87245.0,87218.0,0.0114718]
[1766166546168,0.0114684,87244.0,87220.0,0.28817663]
[1766166546375,0.0114691,87239.0,87221.0,0.00584]
[1766166546571,0.00568,87245.0,87222.0,0.0114712]
[1766166546773,0.00568,87245.0,87225.0,0.01164268]
[1766166546774,0.00017188,87242.0,87225.0,0.01164268]
[1766166546970,0.00017188,87242.0,87225.0,0.00017188]
[1766166547373,0.00017188,87242.0,87226.0,0.0114707]
[1766166547578,0.00017188,87242.0,87225.0,0.00017188]
[1766166547875,0.00017188,87242.0,87226.0,0.0114707]
[1766166548082,0.00017188,87242.0,87225.0,0.00017188]
[1766166548777,0.01164058,87242.0,87225.0,0.00017188]
[1766166548980,0.00017188,87242.0,87225.0,0.00017188]
[1766166549477,0.00336,87258.0,87241.0,0.0114687]
[1766166549669,0.28817663,87290.0,87243.0,0.0114685]
[1766166549975,1.49109366,87289.0,87243.0,0.0114685]
[1766166550177,0.0114639,87279.0,87240.0,0.28817663]
[1766166550383,1.46648,87289.0,87240.0,0.28817663]
[1766166550384,0.00017188,87268.0,87251.0,0.00017188]
[1766166550593,0.00245188,87268.0,87251.0,0.00017188]
[1766166551073,0.00017188,87268.0,87251.0,0.01163928]
[1766166551580,0.00017188,87268.0,87251.0,0.00017188]
[1766166551777,0.00017188,87268.0,87252.0,0.0114672]
[1766166551980,8e-08,87268.0,87251.0,0.00017188]
[1766166552179,0.011462,87293.0,87265.0,0.0114655]
[1766166552387,0.0114623,87291.0,87261.0,0.017306]
[1766166552568,0.0114626,87288.0,87261.0,0.017306]
[1766166552772,0.28817663,87290.0,87253.0,0.0114671]
[1766166552977,0.00392,87292.0,87255.0,0.0114669]
[1766166553179,0.00017188,87282.0,87265.0,0.00017188]
[1766166553380,0.00584,87281.0,87265.0,0.00017188]
[1766166553585,0.0114637,87280.0,87265.0,0.00017188]
[1766166553878,0.00584,87281.0,87265.0,1.88e-06]
[1766166554085,0.011465,87270.0,87242.0,0.0114686]
[1766166554283,0.00396,87269.0,87243.0,0.00392]
[1766166554470,0.0114653,87268.0,87244.0,0.0114683]
[1766166554674,0.00396,87269.0,87247.0,0.0114679]
[1766166554875,0.0154252,87269.0,87246.0,0.011468]
[1766166555186,0.00017188,87266.0,87249.0,0.00017188]
[1766166557484,1.46244,87290.0,87250.0,0.28817663]
[1766166557679,0.00584,87289.0,87270.0,0.0114649]
[1766166557873,0.00584,87289.0,87259.0,0.28817663]
[1766166557874,0.00584,87289.0,87259.0,0.29401663]
[1766166558078,0.0114628,87286.0,87259.0,0.29401663]
[1766166558279,0.0114628,87286.0,87263.0,0.0114659]
[1766166558683,0.00017188,87283.0,87266.0,0.00017188]
[1766166559589,0.0597547,87316.0,87270.0,0.28817663]
[1766166559885,0.0114609,87301.0,87270.0,0.0034]
[1766166560085,0.03063413,87300.0,87270.0,0.0148649]
[1766166560275,0.011462,87293.0,87270.0,0.0034]
[1766166560679,0.00584,87300.0,87266.0,0.00017188]
[1766166560880,0.28817663,87290.0,87266.0,0.00017188]
[1766166561078,0.02682929,87289.0,87268.0,0.0114651]
[1766166561279,0.00584,87296.0,87270.0,0.28817663]
[1766166561479,0.0114636,87281.0,87274.0,8e-08]
[1766166561681,0.0114618,87294.0,87274.0,8e-08]
[1766166561880,0.02484653,87293.0,87274.0,8e-08]
[1766166562081,0.0114632,87284.0,87274.0,8e-08]
[1766166562281,0.0114625,87289.0,87274.0,8e-08]
[1766166562490,0.0001718,87290.0,87274.0,8e-08]
[1766166562886,0.02484162,87289.0,87262.0,0.00112]
[1766166563187,0.02484162,87288.0,87262.0,0.00112]
[1766166563493,0.0114645,87274.0,87259.0,0.0004]
[1766166563686,0.00568,87281.0,87261.0,0.0114661]
[1766166563885,0.011463,87285.0,87266.0,0.0114654]
[1766166564087,0.00584,87289.0,87262.0,0.00017188]
[1766166564284,0.0114591,87315.0,87262.0,0.00017188]
[1766166564478,0.0114608,87302.0,87281.0,0.0114634]
[1766166564684,0.03067848,87301.0,87282.0,0.0114632]
[1766166564994,0.02483848,87300.0,87275.0,0.00208]
[1766166565294,0.0114613,87298.0,87276.0,0.011464]
[1766166565602,0.0173009,87301.0,87279.0,0.00017188]
[1766166565786,0.0114612,87299.0,87279.0,0.00017188]
[1766166565993,0.00584,87301.0,87284.0,0.011463]
[1766166566195,1.4736988,87318.0,87279.0,0.00017188]
[1766166566196,0.01146,87308.0,87285.0,0.0161828]
[1766166566394,0.00508,87310.0,87285.0,0.00472]
[1766166566395,0.02482293,87307.0,87285.0,0.00472]
[1766166566591,0.011462,87293.0,87279.0,0.00017188]
[1766166566797,0.00584,87300.0,87279.0,0.00245188]
[1766166567088,0.00584,87300.0,87279.0,0.00017188]
[1766166567296,0.011462,87293.0,87279.0,0.00017188]
[1766166567500,0.0114615,87297.0,87279.0,0.00017188]
[1766166567791,0.00584,87300.0,87280.0,0.0114636]
[1766166568388,0.00584,87300.0,87282.0,0.0114632]
[1766166568583,0.00584,87300.0,87284.0,0.011463]
[1766166568983,0.0114597,87310.0,87285.0,0.0058]
[1766166569183,1.5,87317.0,87285.0,0.0058]
[1766166569184,0.0114604,87305.0,87285.0,0.0058]
[1766166569384,0.0114609,87302.0,87285.0,0.0058]
[1766166569593,0.00508,87309.0,87285.0,0.0058]
[1766166569893,0.0114611,87300.0,87285.0,0.0058]
[1766166570101,0.0114606,87303.0,87285.0,0.0058]
[1766166570395,0.07038536,87335.0,87293.0,0.0114619]
[1766166570593,0.03057293,87334.0,87304.0,0.0114604]
[1766166570793,0.02473293,87333.0,87305.0,0.00017178]
[1766166570991,0.00584,87334.0,87305.0,0.00017178]
[1766166570992,0.0114579,87325.0,87305.0,0.00017178]
[1766166571200,0.0114577,87325.0,87306.0,0.0114602]
[1766166571500,1.5,87332.0,87305.0,0.00017178]
[1766166571694,0.0114579,87324.0,87305.0,0.00017178]
[1766166571994,0.00584,87324.0,87305.0,0.00017178]
[1766166572198,1.46208,87341.0,87314.0,0.28817663]
[1766166572393,0.00584,87341.0,87319.0,0.0114584]
[1766166572594,0.0114558,87340.0,87315.0,0.0172989]
[1766166573107,0.0114563,87336.0,87315.0,0.0172989]
[1766166573298,0.00584,87341.0,87315.0,0.00584]
[1766166573595,0.0114572,87329.0,87315.0,0.00584]
[1766166573798,0.0114571,87330.0,87315.0,0.00584]
[1766166573987,0.0114585,87320.0,87300.0,0.28817663]
[1766166574192,0.00568,87331.0,87306.0,0.00584]
[1766166574498,0.0114579,87324.0,87306.0,0.00584]
[1766166574689,0.0114575,87328.0,87306.0,0.00584]
[1766166575094,0.00568,87331.0,87306.0,0.00584]
[1766166575095,0.0114577,87326.0,87306.0,0.00584]
[1766166575486,0.0114572,87329.0,87308.0,0.0114599]
[1766166576089,0.00568,87331.0,87313.0,0.0114592]
[1766166576293,0.00568,87331.0,87310.0,0.0114597]
[1766166576487,1.46172,87348.0,87320.0,0.28817663]
[1766166576688,0.011456,87339.0,87325.0,0.00017178]
[1766166577204,0.00584,87347.0,87325.0,0.00017178]
[1766166577402,0.0114567,87333.0,87325.0,0.00017178]
[1766166577703,0.011454,87354.0,87325.0,0.00017178]
[1766166577704,0.0114494,87389.0,87350.0,0.28817663]
[1766166578002,0.0114514,87374.0,87356.0,0.00017178]
[1766166578202,0.05584,87379.0,87356.0,0.00017178]
[1766166578402,0.0114517,87372.0,87356.0,0.00017178]
[1766166578597,0.0114517,87371.0,87356.0,0.00017178]
[1766166578805,0.05584,87379.0,87356.0,0.00017178]
[1766166579104,0.0114523,87367.0,87356.0,0.00017178]
[1766166579296,0.05584,87379.0,87356.0,0.00017178]
[1766166579898,0.05,87379.0,87356.0,0.00017178]
[1766166580094,0.05,87379.0,87361.0,0.011453]
[1766166580297,0.05,87379.0,87362.0,0.00084]
[1766166580493,0.0114509,87378.0,87362.0,0.00084]
[1766166581000,0.0114512,87375.0,87362.0,0.00084]
[1766166581201,0.05,87379.0,87362.0,0.00084]
[1766166581202,0.0114521,87368.0,87362.0,0.00044]
[1766166581590,0.00584,87375.0,87356.0,0.00045178]
[1766166582198,0.0114521,87368.0,87356.0,0.00045178]
[1766166582401,0.011451,87377.0,87316.0,0.00014545]
[1766166582705,0.0114525,87365.0,87324.0,0.0114578]
[1766166582914,0.011455,87346.0,87323.0,0.0114579]
[1766166583105,0.0114554,87343.0,87319.0,0.0114584]
[1766166583292,0.00584,87349.0,87317.0,0.002]
[1766166583499,0.0114565,87335.0,87322.0,0.00017178]
[1766166583706,0.00017152,87340.0,87316.0,0.00014545]
[1766166583707,0.0114569,87332.0,87316.0,0.00014545]
[1766166584002,0.00572,87332.0,87319.0,0.0114585]
[1766166584404,0.00572,87332.0,87316.0,0.00014545]
[1766166584599,0.00017152,87340.0,87320.0,0.28691581]
[1766166584798,1.4612,87357.0,87317.0,0.11503408]
[1766166585105,0.00584,87356.0,87320.0,0.28691581]
[1766166585502,0.00584,87356.0,87317.0,1.46172]
[1766166585707,0.00017178,87345.0,87328.0,0.00017178]
[1766166585909,0.0114555,87343.0,87328.0,0.00017178]
[1766166586108,0.00601178,87345.0,87328.0,0.00017178]
[1766166586405,0.0114561,87338.0,87328.0,8e-08]
[1766166586606,0.00601178,87345.0,87328.0,8e-08]
[1766166586908,0.0114571,87331.0,87328.0,8e-08]
[1766166587105,0.00296,87331.0,87316.0,0.00014545]
[1766166587611,0.014417,87331.0,87316.0,0.00014545]
[1766166587799,0.00296,87331.0,87316.0,0.00014545]
[1766166588006,0.0114555,87343.0,87317.0,0.0114588]
[1766166588203,0.0114558,87340.0,87317.0,0.0114588]
[1766166588403,0.0114558,87340.0,87316.0,0.00014545]
[1766166588404,0.004,87342.0,87320.0,0.0114583]
[1766166588704,0.0154556,87342.0,87316.0,0.01160425]
[1766166588900,0.0114558,87340.0,87316.0,0.01160425]
[1766166589106,0.00584,87339.0,87316.0,0.01160425]
[1766166589307,0.0114561,87338.0,87316.0,0.00014545]
[1766166589913,0.00584,87339.0,87316.0,0.01160435]
[1766166590115,0.00208,87338.0,87320.0,0.0114583]
[1766166590310,0.00017178,87345.0,87323.0,0.0114579]
[1766166590517,0.004,87344.0,87323.0,0.0114579]
[1766166590713,0.004,87344.0,87319.0,0.004]
[1766166591515,0.0114565,87335.0,87319.0,0.004]
[1766166591706,0.004,87344.0,87319.0,0.004]
[1766166591908,0.004,87344.0,87306.0,0.0114601]
[1766166591909,0.0114572,87329.0,87306.0,0.0114601]
[1766166592104,0.00524,87330.0,87307.0,0.00392]
[1766166592306,0.0114572,87329.0,87294.0,0.24599829]
[1766166592504,0.4263206,87330.0,87292.0,0.00584]
[1766166592806,0.0114601,87308.0,87285.0,0.0114629]
[1766166593119,0.0114601,87308.0,87264.0,0.0001222]
[1766166593120,0.00017178,87320.0,87298.0,0.0114612]
[1766166593314,0.0114583,87321.0,87300.0,0.0114609]
[1766166593315,0.00392,87319.0,87300.0,0.0114609]
[1766166593520,0.0153786,87319.0,87296.0,0.0114614]
[1766166593708,0.00528,87318.0,87299.0,0.0114611]
[1766166593909,0.0114586,87319.0,87299.0,0.0114611]
[1766166594219,0.00012659,87329.0,87300.0,0.00017178]
[1766166594220,0.00017178,87317.0,87300.0,0.00017178]
[1766166595317,0.00017178,87317.0,87304.0,0.0114604]
[1766166595514,0.00228,87316.0,87301.0,0.0114608]
[1766166595825,0.00228,87316.0,87303.0,0.0114605]
[1766166596311,0.0034,87316.0,87303.0,0.0114605]
[1766166596911,0.0034,87316.0,87300.0,0.00017178]
[1766166598217,0.0034,87316.0,87300.0,0.01163278]
[1766166601114,0.00584,87326.0,87281.0,0.11576262]
[1766166601315,0.0114581,87323.0,87281.0,0.00584]
[1766166601620,0.0572783,87342.0,87281.0,0.00584]
[1766166601621,1.46136,87341.0,87312.0,0.0114593]
[1766166601815,0.00584,87340.0,87301.0,0.00584]
[1766166602016,0.00017178,87329.0,87301.0,0.00584]
[1766166602218,0.00584,87328.0,87296.0,0.0114615]
[1766166602416,0.00584,87328.0,87294.0,1.4614]
[1766166602417,0.0114589,87317.0,87299.0,0.0114611]
[1766166602617,0.0114583,87321.0,87303.0,0.0114606]
[1766166602821,0.00017178,87329.0,87305.0,0.0114602]
[1766166602822,0.00351123,87312.0,87305.0,0.0114602]
[1766166603135,0.00351123,87312.0,87300.0,0.00017178]
[1766166603320,0.0114596,87311.0,87300.0,0.00017178]
[1766166603522,0.00351123,87312.0,87269.0,0.0409666]
[1766166603827,0.00351123,87291.0,87278.0,0.0114638]
[1766166604210,0.00351123,87291.0,87276.0,0.0114641]
[1766166604420,0.00351123,87291.0,87268.0,0.00584]
[1766166604614,0.00351123,87291.0,87275.0,0.01157872]
[1766166604810,0.00351123,87283.0,87275.0,0.00011452]
[1766166605710,0.00351123,87283.0,87264.0,0.0001222]
[1766166605915,0.00351123,87274.0,87267.0,0.0114652]
[1766166606117,0.00351123,87274.0,87264.0,0.0001222]
[1766166606513,3e-08,87274.0,87270.0,0.0114649]
[1766166606710,0.01163398,87292.0,87264.0,0.0001222]
[1766166606912,0.0114625,87289.0,87267.0,0.0114652]
[1766166607115,0.0114625,87289.0,87265.0,0.0114656]
[1766166607523,0.00536,87288.0,87265.0,0.0114656]
[1766166608616,0.00536,87288.0,87269.0,0.011465]
[1766166609328,0.0114607,87303.0,87279.0,0.0114636]
[1766166609521,0.4210806,87330.0,87283.0,0.0114632]
[1766166609719,0.0114602,87306.0,87270.0,0.4210806]
[1766166609918,0.011461,87300.0,87268.0,0.00244]
[1766166610113,0.0018,87299.0,87268.0,0.00116]
[1766166610319,0.0114613,87298.0,87274.0,0.0114643]
[1766166610520,0.00017188,87292.0,87279.0,0.0114637]
[1766166610721,0.00017188,87292.0,87278.0,0.0114638]
[1766166611221,0.00017188,87292.0,87275.0,0.00017188]
[1766166611421,0.01146,87308.0,87286.0,0.0114628]
[1766166611622,0.011456,87338.0,87286.0,0.0114628]
[1766166611623,0.00392,87307.0,87286.0,0.0114628]
[1766166611818,0.0114605,87305.0,87282.0,0.0114633]
[1766166612025,0.0114607,87303.0,87278.0,0.00476]
[1766166612226,0.00392,87302.0,87282.0,0.0114634]
[1766166612426,0.00545188,87301.0,87285.0,0.0114629]
[1766166612620,0.00545188,87301.0,87283.0,0.00017188]
[1766166612621,0.0114576,87327.0,87288.0,0.0114625]
[1766166612827,0.0114588,87317.0,87295.0,0.0114615]
[1766166613131,0.0114588,87317.0,87280.0,0.4210806]
[1766166613132,0.011459,87315.0,87291.0,0.0114621]
[1766166613322,0.0114565,87335.0,87297.0,0.0114613]
[1766166613524,0.00584,87334.0,87299.0,0.0114611]
[1766166613723,0.0114541,87353.0,87308.0,0.00017188]
[1766166613724,0.00017188,87325.0,87308.0,0.00017188]
[1766166614429,0.01162978,87325.0,87308.0,0.00017188]
[1766166614630,0.01738978,87325.0,87308.0,0.00017188]
[1766166615224,0.0114585,87320.0,87308.0,0.00017188]
[1766166615419,0.00593188,87325.0,87308.0,0.00017188]
[1766166615633,0.0114579,87324.0,87301.0,0.0114608]
[1766166615822,0.00593188,87325.0,87297.0,0.00096]
[1766166616223,0.0114583,87321.0,87299.0,0.011461]
[1766166616423,0.01738968,87325.0,87302.0,0.0114607]
[1766166616634,0.01738968,87325.0,87305.0,0.00017176]
[1766166616829,0.0114585,87320.0,87305.0,0.00017176]
[1766166617031,0.0114589,87316.0,87305.0,0.00017176]
[1766166617335,0.0114585,87319.0,87305.0,0.00017176]
[1766166618030,0.0114581,87322.0,87305.0,0.00017176]
[1766166618433,0.00593188,87325.0,87307.0,0.0114601]
[1766166618734,0.0114554,87343.0,87307.0,0.0114601]
[1766166618735,0.00464,87324.0,87307.0,0.0114601]
[1766166619034,0.0114561,87338.0,87315.0,0.011459]
[1766166619339,0.00228,87337.0,87315.0,0.011459]
[1766166619738,0.00017176,87335.0,87317.0,0.00017176]
[1766166619939,0.01162826,87335.0,87317.0,0.01163046]
[1766166620527,0.0048,87334.0,87319.0,0.0114584]
[1766166621032,0.0048,87334.0,87318.0,0.0114586]
[1766166621627,0.00017176,87335.0,87318.0,0.0114586]
[1766166621628,0.00481176,87335.0,87318.0,0.0114586]
[1766166622232,0.00481176,87335.0,87317.0,0.00017176]
[1766166622233,0.00017176,87335.0,87325.0,0.0114577]
[1766166622441,0.00017176,87335.0,87317.0,0.00017176]
[1766166622636,0.00017176,87335.0,87318.0,0.0114586]
[1766166622932,0.00017176,87335.0,87317.0,0.00017176]
[1766166624235,0.00017176,87335.0,87322.0,0.0114581]
[1766166624941,0.00017176,87335.0,87317.0,0.00017176]
[1766166625340,0.0114566,87334.0,87317.0,0.00017176]
[1766166625644,0.00017176,87335.0,87317.0,0.00017176]
[1766166626042,0.01162826,87335.0,87317.0,0.00017176]
[1766166626241,0.0114567,87333.0,87317.0,0.00017176]
[1766166626643,0.011457,87331.0,87317.0,0.00017176]
[1766166626940,0.0114566,87334.0,87317.0,0.00017176]
[1766166627339,0.011457,87331.0,87317.0,0.00017176]
[1766166627838,6e-08,87335.0,87320.0,0.4210806]
[1766166628039,0.00584,87345.0,87333.0,0.0114566]
[1766166628234,0.00584,87345.0,87320.0,0.4325389]
[1766166628235,0.00584,87345.0,87328.0,0.00584]
[1766166628435,0.00584,87345.0,87328.0,0.0172972]
[1766166628630,0.00288,87352.0,87328.0,0.00584]
[1766166628942,0.00492,87357.0,87337.0,0.0114561]
[1766166629136,0.00017176,87349.0,87336.0,0.0114562]
[1766166629639,1.46124,87386.0,87337.0,0.12434088]
[1766166629942,0.0114512,87375.0,87351.0,0.0114542]
[1766166630132,0.0114512,87375.0,87351.0,0.0114543]
[1766166630333,0.00584,87378.0,87350.0,0.00392]
[1766166630534,0.00017176,87373.0,87355.0,0.00017176]
[1766166631735,0.00017176,87373.0,87324.0,0.0409666]
[1766166631736,0.0114527,87364.0,87324.0,0.0409666]
[1766166632038,0.0114531,87361.0,87328.0,0.0114573]
[1766166632234,0.0114531,87361.0,87327.0,0.13210804]
[1766166632433,0.0114531,87361.0,87326.0,1.467]
[1766166632639,0.0114531,87361.0,87328.0,0.24657166]
[1766166632841,0.0114542,87352.0,87336.0,0.00017176]
[1766166633432,0.00017176,87353.0,87336.0,0.00017176]
[1766166633844,0.00241176,87353.0,87336.0,1.76e-06]
[1766166634033,0.0114556,87342.0,87336.0,1.76e-06]
[1766166634734,0.00584,87343.0,87336.0,1.76e-06]
[1766166634937,0.0114561,87338.0,87336.0,1.76e-06]
[1766166635146,0.0114565,87335.0,87319.0,0.0022]
[1766166635346,0.0114572,87330.0,87311.0,0.00584]
[1766166635845,0.0114582,87322.0,87301.0,0.0114609]
[1766166636043,0.0114577,87325.0,87300.0,0.00584]
[1766166636344,0.00017176,87321.0,87308.0,0.0114598]
[1766166636545,0.00017176,87321.0,87306.0,0.0114601]
[1766166637046,0.00017176,87321.0,87310.0,0.0114596]
[1766166637340,9.522e-05,87324.0,87305.0,0.11452851]
[1766166637643,0.00056,87334.0,87325.0,0.0114577]
[1766166637842,0.0114548,87347.0,87325.0,0.0114577]
[1766166638038,0.00392,87346.0,87330.0,0.011457]
[1766166638236,0.00584,87345.0,87329.0,0.00017176]
[1766166638431,0.00017176,87347.0,87329.0,0.00017176]
[1766166638432,0.01150851,87344.0,87329.0,0.00017176]
[1766166638637,0.0114561,87338.0,87329.0,0.00017176]
[1766166638842,0.0114564,87335.0,87329.0,0.00017176]
[1766166639048,0.0114564,87335.0,87329.0,1.76e-06]
[1766166639447,0.011456,87339.0,87329.0,1.76e-06]
[1766166639746,0.0114555,87343.0,87329.0,1.76e-06]
[1766166640236,0.0114557,87341.0,87329.0,1.76e-06]
[1766166640443,5.311e-05,87344.0,87329.0,1.76e-06]
[1766166641038,0.0114564,87336.0,87329.0,1.76e-06]
[1766166641231,0.0114564,87335.0,87329.0,1.76e-06]
[1766166642245,0.00584,87336.0,87329.0,1.76e-06]
[1766166642246,0.0114568,87333.0,87329.0,1.76e-06]
[1766166642949,0.011457,87331.0,87329.0,1.76e-06]
[1766166643843,0.00584,87336.0,87302.0,0.00112]
[1766166643844,0.0114577,87325.0,87305.0,0.0114603]
[1766166644153,0.0114582,87322.0,87304.0,0.0114605]
[1766166644851,0.01162996,87322.0,87304.0,0.01163226]
[1766166645156,0.00017176,87322.0,87304.0,0.00017176]
[1766166645445,0.00017176,87322.0,87311.0,0.0114596]
[1766166645652,0.00017176,87322.0,87308.0,0.0114599]
[1766166645942,0.00017176,87322.0,87304.0,0.01163216]
[1766166646142,0.01162986,87322.0,87304.0,0.00017176]
[1766166646350,0.00017176,87322.0,87304.0,0.00017176]
[1766166646734,0.011459,87316.0,87304.0,0.00017176]
[1766166646941,0.00017176,87322.0,87304.0,0.00017176]
[1766166647649,0.0114586,87319.0,87304.0,0.00017176]
[1766166647839,0.0114583,87321.0,87304.0,0.00017176]
[1766166648253,0.0114586,87319.0,87304.0,0.00017176]
[1766166648443,0.00017176,87322.0,87304.0,0.00017176]
[1766166648751,0.00017176,87322.0,87307.0,0.01146]
[1766166649348,0.00017176,87322.0,87304.0,0.01163216]
[1766166649550,0.0114586,87318.0,87304.0,0.00017176]
[1766166649741,0.00017176,87322.0,87304.0,0.00017176]
[1766166649949,0.00017176,87322.0,87305.0,0.0114603]
[1766166650142,0.00017176,87322.0,87304.0,0.00017176]
[1766166651146,0.00017176,87322.0,87304.0,6e-08]
[1766166651754,0.0114585,87319.0,87304.0,6e-08]
[1766166651939,5.311e-05,87318.0,87304.0,6e-08]
[1766166652452,0.32287963,87409.0,87305.0,0.0114603]
[1766166652453,0.0114561,87338.0,87305.0,0.0114603]
[1766166652655,0.0114563,87336.0,87316.0,0.0114588]
[1766166652840,0.00584,87335.0,87316.0,0.0114588]
[1766166653446,0.00385176,87334.0,87318.0,0.0114586]
[1766166653752,0.00017176,87334.0,87318.0,0.0114586]
[1766166653943,0.00017176,87334.0,87317.0,0.00017176]
[1766166653944,0.00224,87333.0,87317.0,0.00017176]
[1766166654541,0.00017176,87334.0,87326.0,0.0114575]
[1766166654950,0.00017176,87334.0,87317.0,0.00017176]
[1766166655453,1.76e-06,87334.0,87317.0,0.00017176]
[1766166655643,1.76e-06,87334.0,87324.0,0.0114579]
[1766166655843,0.00276,87368.0,87325.0,1.46704]
[1766166656146,0.0114523,87367.0,87345.0,0.0114551]
[1766166656446,0.00276,87368.0,87340.0,0.00392]
[1766166656646,0.00276,87368.0,87345.0,0.011455]
[1766166656844,0.00017176,87365.0,87348.0,0.00017176]
[1766166657046,0.00017176,87365.0,87349.0,0.0114545]
[1766166657242,0.00017176,87365.0,87351.0,0.0114542]
[1766166657444,0.00017176,87365.0,87348.0,0.00017176]
[1766166657644,1.76e-06,87365.0,87355.0,0.0114538]
[1766166657850,1.76e-06,87365.0,87348.0,0.00017176]
[1766166657851,1.76e-06,87365.0,87358.0,0.0114534]
[1766166658049,1.76e-06,87365.0,87354.0,0.0114539]
[1766166658355,1.76e-06,87365.0,87350.0,0.00292]
[1766166659452,1.76e-06,87365.0,87351.0,0.0114543]
[1766166660560,1.76e-06,87365.0,87348.0,6e-08]
[1766166660744,0.00228176,87365.0,87325.0,1.461]
[1766166661051,1.76e-06,87365.0,87350.0,0.28726922]
[1766166661251,1.76e-06,87365.0,87358.0,0.0114533]
[1766166661451,1.76e-06,87365.0,87361.0,0.011453]
[1766166661647,1.76e-06,87365.0,87356.0,0.0114536]
[1766166661848,1.76e-06,87365.0,87358.0,0.0114533]
[1766166662246,1.76e-06,87365.0,87354.0,0.00017176]
[1766166662453,1.76e-06,87365.0,87363.0,0.0114526]
[1766166662651,0.0114486,87395.0,87360.0,0.00584]
[1766166662854,0.0114475,87403.0,87378.0,0.0114507]
[1766166663164,0.0114479,87401.0,87371.0,0.00584]
[1766166663357,0.00584,87400.0,87371.0,0.00584]
[1766166663559,0.0114486,87395.0,87371.0,0.00584]
[1766166663755,0.00017166,87392.0,87374.0,0.00017166]
[1766166664347,0.00017166,87392.0,87375.0,0.0114511]